[Event "Titled Tuesday Blitz August 16 Late 2022"]
[White "Grischuk, Alexander"]
[Black "So, Wesley"]
[WhiteFideId "4126025"]
[BlackFideId "5202213"]
[WhiteElo "2762"]
[BlackElo "2763"]
[Result "1-0"]
[Round "08"]
[TimeControl "180+1"]
[Date "2022.08.16"]
[WhiteClock "0:00:13"]
[BlackClock "0:00:09"]

1. d4 {[%clk 0:03:00]}  d5 {[%clk 0:02:59]} 2. c4 {[%clk 0:02:59]}  dxc4 {[%clk 0:03:00]} 3. Nf3 {[%clk 0:02:59]}  Nf6 {[%clk 0:02:59]} 4. e3 {[%clk 0:02:59]}  e6 {[%clk 0:03:00]} 5. Bxc4 {[%clk 0:02:59]}  c5 {[%clk 0:03:01]} 6. O-O {[%clk 0:02:59]}  a6 {[%clk 0:03:02]} 7. Bb3 {[%clk 0:02:59]}  Nc6 {[%clk 0:02:54]} 8. Nc3 {[%clk 0:02:59]}  b5 {[%clk 0:02:52]} 9. dxc5 {[%clk 0:02:41]}  Qxd1 {[%clk 0:02:45]} 10. Rxd1 {[%clk 0:02:42]}  Bxc5 {[%clk 0:02:45]} 11. Bd2 {[%clk 0:02:41]}  Bb7 {[%clk 0:02:45]} 12. Rac1 {[%clk 0:02:39]}  Be7 {[%clk 0:02:44]} 13. Ne2 {[%clk 0:02:29]}  O-O {[%clk 0:02:42]} 14. Ned4 {[%clk 0:02:29]}  Rac8 {[%clk 0:02:36]} 15. Nxc6 {[%clk 0:02:29]}  Bxc6 {[%clk 0:02:33]} 16. Nd4 {[%clk 0:02:27]}  Bb7 {[%clk 0:02:33]} 17. Rxc8 {[%clk 0:02:21]}  Rxc8 {[%clk 0:02:33]} 18. Nxe6 {[%clk 0:02:20]}  fxe6 {[%clk 0:02:21]} 19. Bxe6+ {[%clk 0:02:21]}  Kf8 {[%clk 0:02:21]} 20. Bxc8 {[%clk 0:02:21]}  Bxc8 {[%clk 0:02:22]} 21. Bb4 {[%clk 0:02:17]}  Ke8 {[%clk 0:02:06]} 22. Bxe7 {[%clk 0:02:17]}  Kxe7 {[%clk 0:02:06]} 23. f3 {[%clk 0:02:13]}  Be6 {[%clk 0:02:04]} 24. e4 {[%clk 0:02:05]}  g5 {[%clk 0:01:50]} 25. Kf2 {[%clk 0:02:02]}  a5 {[%clk 0:01:48]} 26. b3 {[%clk 0:01:56]}  Nd7 {[%clk 0:01:38]} 27. Ke3 {[%clk 0:01:52]}  a4 {[%clk 0:01:33]} 28. bxa4 {[%clk 0:01:46]}  bxa4 {[%clk 0:01:34]} 29. Rd4 {[%clk 0:01:40]}  Nc5 {[%clk 0:01:32]} 30. a3 {[%clk 0:01:39]}  Bb3 {[%clk 0:01:31]} 31. g3 {[%clk 0:01:31]}  Nd7 {[%clk 0:01:16]} 32. f4 {[%clk 0:01:30]}  Nb6 {[%clk 0:01:11]} 33. Kd3 {[%clk 0:01:28]}  gxf4 {[%clk 0:01:08]} 34. gxf4 {[%clk 0:01:28]}  Nd7 {[%clk 0:01:09]} 35. Rb4 {[%clk 0:01:22]}  Kd6 {[%clk 0:00:52]} 36. Kd4 {[%clk 0:01:15]}  Bc2 {[%clk 0:00:52]} 37. Rb5 {[%clk 0:01:08]}  Ke6 {[%clk 0:00:39]} 38. f5+ {[%clk 0:00:48]}  Ke7 {[%clk 0:00:39]} 39. Rb2 {[%clk 0:00:40]}  Bb3 {[%clk 0:00:36]} 40. e5 {[%clk 0:00:40]}  Nb6 {[%clk 0:00:33]} 41. Rg2 {[%clk 0:00:39]}  Nc4 {[%clk 0:00:33]} 42. Rg7+ {[%clk 0:00:36]}  Kf8 {[%clk 0:00:33]} 43. Rxh7 {[%clk 0:00:34]}  Nxa3 {[%clk 0:00:33]} 44. e6 {[%clk 0:00:33]}  Kg8 {[%clk 0:00:13]} 45. Rb7 {[%clk 0:00:29]}  Nc2+ {[%clk 0:00:10]} 46. Ke5 {[%clk 0:00:22]}  Ne3 {[%clk 0:00:10]} 47. Rb8+ {[%clk 0:00:19]}  Kh7 {[%clk 0:00:11]} 48. e7 {[%clk 0:00:18]}  Ng4+ {[%clk 0:00:07]} 49. Kf4 {[%clk 0:00:12]}  Nf6 {[%clk 0:00:07]} 50. e8=Q {[%clk 0:00:12]}  Nxe8 {[%clk 0:00:07]} 51. Rxe8 {[%clk 0:00:13]}  a3 {[%clk 0:00:08]} 52. Ra8 {[%clk 0:00:13]}  a2 {[%clk 0:00:09]} 53. Kg5 {[%clk 0:00:13]}  Kg7 {[%clk 0:00:09]} 54. Ra7+ {[%clk 0:00:13]} 1-0


[Site "https://www.chess.com"]

[Event "Titled Tuesday Blitz August 16 Late 2022"]
[White "Gubajdullin, Alexei"]
[Black "Petrovic, Aleksa"]
[WhiteFideId "4141202"]
[BlackFideId "967629"]
[WhiteElo "2214"]
[BlackElo "2262"]
[Result "0-1"]
[Round "08"]
[TimeControl "180+1"]
[Date "2022.08.18"]
[WhiteClock "0:00:00"]
[BlackClock "0:00:00"]

1. Nf3 {[%clk 0:00:00]}  Nf6 {[%clk 0:00:00]} 2. c4 {[%clk 0:00:00]}  e6 {[%clk 0:00:00]} 3. g3 {[%clk 0:00:00]}  b6 {[%clk 0:00:00]} 4. Bg2 {[%clk 0:00:00]}  Bb7 {[%clk 0:00:00]} 5. O-O {[%clk 0:00:00]}  c5 {[%clk 0:00:00]} 6. Nc3 {[%clk 0:00:00]}  a6 {[%clk 0:00:00]} 7. b3 {[%clk 0:00:00]}  Be7 {[%clk 0:00:00]} 8. Bb2 {[%clk 0:00:00]}  O-O {[%clk 0:00:00]} 9. e3 {[%clk 0:00:00]}  d6 {[%clk 0:00:00]} 10. Qe2 {[%clk 0:00:00]}  Nbd7 {[%clk 0:00:00]} 11. Ne1 {[%clk 0:00:00]}  Qb8 {[%clk 0:00:00]} 12. f4 {[%clk 0:00:00]}  Ra7 {[%clk 0:00:00]} 13. g4 {[%clk 0:00:00]}  Bxg2 {[%clk 0:00:00]} 14. Nxg2 {[%clk 0:00:00]}  Rb7 {[%clk 0:00:00]} 15. g5 {[%clk 0:00:00]}  Ne8 {[%clk 0:00:00]} 16. Rf3 {[%clk 0:00:00]}  f5 {[%clk 0:00:00]} 17. gxf6 {[%clk 0:00:00]}  Nexf6 {[%clk 0:00:00]} 18. Rg3 {[%clk 0:00:00]}  b5 {[%clk 0:00:00]} 19. d3 {[%clk 0:00:00]}  Qe8 {[%clk 0:00:00]} 20. Ne4 {[%clk 0:00:00]}  g6 {[%clk 0:00:00]} 21. Ng5 {[%clk 0:00:00]}  Bd8 {[%clk 0:00:00]} 22. Nh4 {[%clk 0:00:00]}  d5 {[%clk 0:00:00]} 23. Qg2 {[%clk 0:00:00]}  Nh5 {[%clk 0:00:00]} 24. Nxh7 {[%clk 0:00:00]}  Kxh7 {[%clk 0:00:00]} 25. Nxg6 {[%clk 0:00:00]}  Nxg3 {[%clk 0:00:00]} 26. Nxf8+ {[%clk 0:00:00]}  Qxf8 {[%clk 0:00:00]} 27. hxg3 {[%clk 0:00:00]}  Bf6 {[%clk 0:00:00]} 28. cxd5 {[%clk 0:00:00]}  Bxb2 {[%clk 0:00:00]} 29. dxe6 {[%clk 0:00:00]}  Rb6 {[%clk 0:00:00]} 30. Qh2+ {[%clk 0:00:00]}  Kg8 {[%clk 0:00:00]} 31. Qxb2 {[%clk 0:00:00]}  Rxe6 {[%clk 0:00:00]} 32. Qe2 {[%clk 0:00:00]}  Qg7 {[%clk 0:00:00]} 33. Kf2 {[%clk 0:00:00]}  Qxa1 {[%clk 0:00:00]} 34. Qg4+ {[%clk 0:00:00]}  Kf7 {[%clk 0:00:00]} 35. Qh5+ {[%clk 0:00:00]}  Ke7 {[%clk 0:00:00]} 36. Qh7+ {[%clk 0:00:00]}  Kd6 {[%clk 0:00:00]} 37. g4 {[%clk 0:00:00]}  Qxa2+ {[%clk 0:00:00]} 38. Kf3 {[%clk 0:00:00]}  Qxb3 {[%clk 0:00:00]} 39. g5 {[%clk 0:00:00]}  Qd1+ {[%clk 0:00:00]} 40. Kf2 {[%clk 0:00:00]}  Qd2+ {[%clk 0:00:00]} 41. Kf1 {[%clk 0:00:00]}  Rxe3 {[%clk 0:00:00]} 42. Qg6+ {[%clk 0:00:00]}  Kc7 {[%clk 0:00:00]} 43. Qxa6 {[%clk 0:00:00]}  Re1# {[%clk 0:00:00]} 0-1


[Site "https://www.chess.com"]

[Event "Titled Tuesday Blitz August 16 Late 2022"]
[White "Harvey, Marcus R"]
[Black "Yurovskykh, Oleksandr"]
[WhiteFideId "400092"]
[BlackFideId "14134020"]
[WhiteElo "2485"]
[BlackElo "2292"]
[Result "1-0"]
[Round "08"]
[TimeControl "180+1"]
[Date "2022.08.16"]
[WhiteClock "0:00:20"]
[BlackClock "0:00:08"]

1. Nf3 {[%clk 0:03:00]}  d5 {[%clk 0:02:59]} 2. b3 {[%clk 0:02:58]}  Bg4 {[%clk 0:02:59]} 3. e3 {[%clk 0:02:58]}  Nd7 {[%clk 0:02:59]} 4. Bb2 {[%clk 0:02:58]}  e6 {[%clk 0:02:58]} 5. h3 {[%clk 0:02:59]}  Bh5 {[%clk 0:02:58]} 6. d3 {[%clk 0:02:58]}  Ngf6 {[%clk 0:02:58]} 7. Nbd2 {[%clk 0:02:59]}  Bd6 {[%clk 0:02:58]} 8. c4 {[%clk 0:02:57]}  c6 {[%clk 0:02:58]} 9. Qc2 {[%clk 0:02:56]}  O-O {[%clk 0:02:56]} 10. a3 {[%clk 0:02:54]}  a5 {[%clk 0:02:55]} 11. g4 {[%clk 0:02:54]}  Bg6 {[%clk 0:02:55]} 12. Nh4 {[%clk 0:02:54]}  e5 {[%clk 0:02:46]} 13. Nxg6 {[%clk 0:02:54]}  hxg6 {[%clk 0:02:46]} 14. Bg2 {[%clk 0:02:54]}  Qe7 {[%clk 0:02:42]} 15. cxd5 {[%clk 0:02:34]}  cxd5 {[%clk 0:02:42]} 16. g5 {[%clk 0:02:34]}  Ne8 {[%clk 0:02:27]} 17. Bxd5 {[%clk 0:02:34]}  Qxg5 {[%clk 0:02:27]} 18. Ne4 {[%clk 0:02:32]}  Qe7 {[%clk 0:02:26]} 19. Bxb7 {[%clk 0:02:13]}  Rb8 {[%clk 0:02:21]} 20. Bd5 {[%clk 0:02:13]}  Nef6 {[%clk 0:02:20]} 21. Bc4 {[%clk 0:02:11]}  Rfc8 {[%clk 0:02:14]} 22. Bc3 {[%clk 0:01:57]}  Nxe4 {[%clk 0:01:59]} 23. dxe4 {[%clk 0:01:57]}  Nb6 {[%clk 0:02:00]} 24. Bxa5 {[%clk 0:01:49]}  Nxc4 {[%clk 0:01:58]} 25. bxc4 {[%clk 0:01:50]}  Bxa3 {[%clk 0:01:49]} 26. O-O {[%clk 0:01:47]}  Bb4 {[%clk 0:01:40]} 27. Rfc1 {[%clk 0:01:38]}  Bxa5 {[%clk 0:01:09]} 28. Rxa5 {[%clk 0:01:36]}  Rc6 {[%clk 0:01:07]} 29. Rd5 {[%clk 0:01:28]}  Rbc8 {[%clk 0:01:07]} 30. c5 {[%clk 0:01:27]}  f6 {[%clk 0:01:00]} 31. Qc4 {[%clk 0:01:25]}  Kh7 {[%clk 0:01:00]} 32. Kg2 {[%clk 0:01:17]}  Qe6 {[%clk 0:00:44]} 33. Rc2 {[%clk 0:01:02]}  g5 {[%clk 0:00:42]} 34. Qe2 {[%clk 0:01:01]}  Kh6 {[%clk 0:00:33]} 35. Qg4 {[%clk 0:00:54]}  Qxg4+ {[%clk 0:00:14]} 36. hxg4 {[%clk 0:00:55]}  R8c7 {[%clk 0:00:14]} 37. Kf3 {[%clk 0:00:49]}  Kg6 {[%clk 0:00:15]} 38. Ke2 {[%clk 0:00:46]}  Rb7 {[%clk 0:00:15]} 39. Rd6 {[%clk 0:00:41]}  Rbc7 {[%clk 0:00:15]} 40. Rxc6 {[%clk 0:00:41]}  Rxc6 {[%clk 0:00:16]} 41. Kd3 {[%clk 0:00:40]}  Kf7 {[%clk 0:00:16]} 42. Kc4 {[%clk 0:00:41]}  Ke6 {[%clk 0:00:16]} 43. Rd2 {[%clk 0:00:40]}  Ra6 {[%clk 0:00:15]} 44. Kb5 {[%clk 0:00:40]}  Ra1 {[%clk 0:00:14]} 45. c6 {[%clk 0:00:40]}  Rb1+ {[%clk 0:00:12]} 46. Kc5 {[%clk 0:00:41]}  Rc1+ {[%clk 0:00:13]} 47. Kb6 {[%clk 0:00:38]}  Rb1+ {[%clk 0:00:12]} 48. Ka7 {[%clk 0:00:38]}  Rc1 {[%clk 0:00:12]} 49. Kb7 {[%clk 0:00:38]}  Rb1+ {[%clk 0:00:13]} 50. Kc8 {[%clk 0:00:37]}  g6 {[%clk 0:00:12]} 51. c7 {[%clk 0:00:36]}  Ke7 {[%clk 0:00:13]} 52. f3 {[%clk 0:00:30]}  Rb3 {[%clk 0:00:12]} 53. Rd7+ {[%clk 0:00:30]}  Ke8 {[%clk 0:00:12]} 54. Rd1 {[%clk 0:00:22]}  Rxe3 {[%clk 0:00:10]} 55. Rd8+ {[%clk 0:00:22]}  Ke7 {[%clk 0:00:10]} 56. Rd7+ {[%clk 0:00:20]}  Ke6 {[%clk 0:00:10]} 57. Kd8 {[%clk 0:00:19]}  Rc3 {[%clk 0:00:05]} 58. c8=Q {[%clk 0:00:19]}  Rxc8+ {[%clk 0:00:06]} 59. Kxc8 {[%clk 0:00:19]}  f5 {[%clk 0:00:07]} 60. Rd5 {[%clk 0:00:17]}  f4 {[%clk 0:00:04]} 61. Kc7 {[%clk 0:00:17]}  Kf6 {[%clk 0:00:04]} 62. Kd6 {[%clk 0:00:17]}  Kf7 {[%clk 0:00:04]} 63. Rxe5 {[%clk 0:00:17]}  Kg7 {[%clk 0:00:05]} 64. Rxg5 {[%clk 0:00:16]}  Kf6 {[%clk 0:00:05]} 65. Ra5 {[%clk 0:00:15]}  g5 {[%clk 0:00:06]} 66. Kd5 {[%clk 0:00:15]}  Kg6 {[%clk 0:00:06]} 67. Ra6+ {[%clk 0:00:15]}  Kf7 {[%clk 0:00:06]} 68. Ke5 {[%clk 0:00:16]}  Kg7 {[%clk 0:00:07]} 69. Kf5 {[%clk 0:00:16]}  Kf7 {[%clk 0:00:07]} 70. Kxg5 {[%clk 0:00:17]}  Ke7 {[%clk 0:00:08]} 71. Kxf4 {[%clk 0:00:17]}  Kf7 {[%clk 0:00:08]} 72. Ke3 {[%clk 0:00:18]}  Ke7 {[%clk 0:00:08]} 73. Kd4 {[%clk 0:00:18]}  Kd7 {[%clk 0:00:09]} 74. e5 {[%clk 0:00:19]}  Ke7 {[%clk 0:00:07]} 75. Rd6 {[%clk 0:00:19]}  Kf7 {[%clk 0:00:08]} 76. Kc5 {[%clk 0:00:20]} 1-0


[Site "https://www.chess.com"]

[Event "Titled Tuesday Blitz August 16 Late 2022"]
[White "Howell, David W L"]
[Black "Krzywda, Andrzej"]
[WhiteFideId "410608"]
[BlackFideId "1114565"]
[WhiteElo "2559"]
[BlackElo "2098"]
[Result "1-0"]
[Round "08"]
[TimeControl "180+1"]
[Date "2022.08.18"]
[WhiteClock "0:00:00"]
[BlackClock "0:00:00"]

1. d4 {[%clk 0:00:00]}  Nf6 {[%clk 0:00:00]} 2. g3 {[%clk 0:00:00]}  c5 {[%clk 0:00:00]} 3. dxc5 {[%clk 0:00:00]}  e6 {[%clk 0:00:00]} 4. Bg2 {[%clk 0:00:00]}  Na6 {[%clk 0:00:00]} 5. e4 {[%clk 0:00:00]}  e5 {[%clk 0:00:00]} 6. Nc3 {[%clk 0:00:00]}  h6 {[%clk 0:00:00]} 7. Nge2 {[%clk 0:00:00]}  Nxc5 {[%clk 0:00:00]} 8. O-O {[%clk 0:00:00]}  Ne6 {[%clk 0:00:00]} 9. Nd5 {[%clk 0:00:00]}  Bc5 {[%clk 0:00:00]} 10. b4 {[%clk 0:00:00]}  Bb6 {[%clk 0:00:00]} 11. Bb2 {[%clk 0:00:00]}  d6 {[%clk 0:00:00]} 12. Nxf6+ {[%clk 0:00:00]}  Qxf6 {[%clk 0:00:00]} 13. Nc3 {[%clk 0:00:00]}  O-O {[%clk 0:00:00]} 14. Nd5 {[%clk 0:00:00]}  Qd8 {[%clk 0:00:00]} 15. Qd2 {[%clk 0:00:00]}  Ng5 {[%clk 0:00:00]} 16. h4 {[%clk 0:00:00]}  Ne6 {[%clk 0:00:00]} 17. Rad1 {[%clk 0:00:00]}  Re8 {[%clk 0:00:00]} 18. a3 {[%clk 0:00:00]}  Bd7 {[%clk 0:00:00]} 19. Nxb6 {[%clk 0:00:00]}  Qxb6 {[%clk 0:00:00]} 20. Qxd6 {[%clk 0:00:00]}  Ba4 {[%clk 0:00:00]} 21. Qxb6 {[%clk 0:00:00]}  axb6 {[%clk 0:00:00]} 22. Bxe5 {[%clk 0:00:00]}  Bxc2 {[%clk 0:00:00]} 23. Rd2 {[%clk 0:00:00]}  Bb3 {[%clk 0:00:00]} 24. Bb2 {[%clk 0:00:00]}  Rec8 {[%clk 0:00:00]} 25. Rc1 {[%clk 0:00:00]}  Rxc1+ {[%clk 0:00:00]} 26. Bxc1 {[%clk 0:00:00]}  Rc8 {[%clk 0:00:00]} 27. Bb2 {[%clk 0:00:00]}  b5 {[%clk 0:00:00]} 28. f4 {[%clk 0:00:00]}  h5 {[%clk 0:00:00]} 29. Kf2 {[%clk 0:00:00]}  Nf8 {[%clk 0:00:00]} 30. e5 {[%clk 0:00:00]}  Ng6 {[%clk 0:00:00]} 31. Bxb7 {[%clk 0:00:00]}  Rb8 {[%clk 0:00:00]} 32. Be4 {[%clk 0:00:00]}  Ne7 {[%clk 0:00:00]} 33. f5 {[%clk 0:00:00]}  g6 {[%clk 0:00:00]} 34. f6 {[%clk 0:00:00]}  Nc8 {[%clk 0:00:00]} 35. Rd8+ {[%clk 0:00:00]}  Kh7 {[%clk 0:00:00]} 36. e6 {[%clk 0:00:00]}  Bxe6 {[%clk 0:00:00]} 37. Be5 {[%clk 0:00:00]}  Rb6 {[%clk 0:00:00]} 38. Bc7 {[%clk 0:00:00]}  Ra6 {[%clk 0:00:00]} 39. Bb7 {[%clk 0:00:00]}  Rxa3 {[%clk 0:00:00]} 40. Bxc8 {[%clk 0:00:00]}  Bxc8 {[%clk 0:00:00]} 41. Rxc8 {[%clk 0:00:00]}  Rc3 {[%clk 0:00:00]} 42. Ke2 {[%clk 0:00:00]}  Rc4 {[%clk 0:00:00]} 43. Kd3 {[%clk 0:00:00]}  Rc1 {[%clk 0:00:00]} 44. Kd4 {[%clk 0:00:00]}  Rc4+ {[%clk 0:00:00]} 45. Kd5 {[%clk 0:00:00]}  Rxb4 {[%clk 0:00:00]} 46. Bf4 {[%clk 0:00:00]}  Rb3 {[%clk 0:00:00]} 47. Rf8 {[%clk 0:00:00]}  Rf3 {[%clk 0:00:00]} 48. Rxf7+ {[%clk 0:00:00]}  Kh8 {[%clk 0:00:00]} 49. Rb7 {[%clk 0:00:00]}  Kg8 {[%clk 0:00:00]} 50. Ke6 {[%clk 0:00:00]} 1-0


[Site "https://www.chess.com"]

[Event "Titled Tuesday Blitz August 16 Late 2022"]
[White "Kopczynski, Michal"]
[Black "Nazaretyan, Tigran"]
[WhiteFideId "1124200"]
[BlackFideId "24162345"]
[WhiteElo "2235"]
[BlackElo "2183"]
[Result "1-0"]
[Round "08"]
[TimeControl "180+1"]
[Date "2022.08.18"]
[WhiteClock "0:00:00"]
[BlackClock "0:00:00"]

1. e4 {[%clk 0:00:00]}  c5 {[%clk 0:00:00]} 2. d4 {[%clk 0:00:00]}  cxd4 {[%clk 0:00:00]} 3. c3 {[%clk 0:00:00]}  Nf6 {[%clk 0:00:00]} 4. Bd3 {[%clk 0:00:00]}  Nc6 {[%clk 0:00:00]} 5. f4 {[%clk 0:00:00]}  d5 {[%clk 0:00:00]} 6. e5 {[%clk 0:00:00]}  Ne4 {[%clk 0:00:00]} 7. Nf3 {[%clk 0:00:00]}  dxc3 {[%clk 0:00:00]} 8. Nxc3 {[%clk 0:00:00]}  Bf5 {[%clk 0:00:00]} 9. O-O {[%clk 0:00:00]}  Nxc3 {[%clk 0:00:00]} 10. bxc3 {[%clk 0:00:00]}  Bxd3 {[%clk 0:00:00]} 11. Qxd3 {[%clk 0:00:00]}  e6 {[%clk 0:00:00]} 12. f5 {[%clk 0:00:00]}  Bc5+ {[%clk 0:00:00]} 13. Kh1 {[%clk 0:00:00]}  exf5 {[%clk 0:00:00]} 14. Qxf5 {[%clk 0:00:00]}  h6 {[%clk 0:00:00]} 15. Qg4 {[%clk 0:00:00]}  g5 {[%clk 0:00:00]} 16. e6 {[%clk 0:00:00]}  fxe6 {[%clk 0:00:00]} 17. Qxe6+ {[%clk 0:00:00]}  Qe7 {[%clk 0:00:00]} 18. Qxd5 {[%clk 0:00:00]}  Rd8 {[%clk 0:00:00]} 19. Qf5 {[%clk 0:00:00]}  Rf8 {[%clk 0:00:00]} 20. Qg6+ {[%clk 0:00:00]}  Kd7 {[%clk 0:00:00]} 21. Qxh6 {[%clk 0:00:00]}  g4 {[%clk 0:00:00]} 22. Bg5 {[%clk 0:00:00]}  Qe6 {[%clk 0:00:00]} 23. Rad1+ {[%clk 0:00:00]}  Bd6 {[%clk 0:00:00]} 24. Qxe6+ {[%clk 0:00:00]}  Kxe6 {[%clk 0:00:00]} 25. Bxd8 {[%clk 0:00:00]}  gxf3 {[%clk 0:00:00]} 26. Bh4 {[%clk 0:00:00]}  fxg2+ {[%clk 0:00:00]} 27. Kxg2 {[%clk 0:00:00]}  Rg8+ {[%clk 0:00:00]} 28. Bg3 {[%clk 0:00:00]}  Bxg3 {[%clk 0:00:00]} 29. hxg3 {[%clk 0:00:00]}  Rg5 {[%clk 0:00:00]} 30. Rfe1+ {[%clk 0:00:00]}  Kf6 {[%clk 0:00:00]} 31. Rd6+ {[%clk 0:00:00]}  Kf5 {[%clk 0:00:00]} 32. Rd5+ {[%clk 0:00:00]}  Kf6 {[%clk 0:00:00]} 33. Rf1+ {[%clk 0:00:00]}  Kg6 {[%clk 0:00:00]} 34. Rd6+ {[%clk 0:00:00]}  Kh7 {[%clk 0:00:00]} 35. Rf7+ {[%clk 0:00:00]}  Rg7 {[%clk 0:00:00]} 36. Rxg7+ {[%clk 0:00:00]}  Kxg7 {[%clk 0:00:00]} 37. Rd7+ {[%clk 0:00:00]}  Kf6 {[%clk 0:00:00]} 38. Rxb7 {[%clk 0:00:00]}  Ke5 {[%clk 0:00:00]} 39. g4 {[%clk 0:00:00]}  a6 {[%clk 0:00:00]} 40. g5 {[%clk 0:00:00]}  Kf5 {[%clk 0:00:00]} 41. g6 {[%clk 0:00:00]}  Nd8 {[%clk 0:00:00]} 42. g7 {[%clk 0:00:00]}  Nxb7 {[%clk 0:00:00]} 43. g8=Q {[%clk 0:00:00]}  Nd6 {[%clk 0:00:00]} 44. Qd5+ {[%clk 0:00:00]}  Kg4 {[%clk 0:00:00]} 45. Qxd6 {[%clk 0:00:00]}  a5 {[%clk 0:00:00]} 46. c4 {[%clk 0:00:00]}  a4 {[%clk 0:00:00]} 47. c5 {[%clk 0:00:00]}  a3 {[%clk 0:00:00]} 48. c6 {[%clk 0:00:00]}  Kf5 {[%clk 0:00:00]} 49. c7 {[%clk 0:00:00]}  Ke4 {[%clk 0:00:00]} 50. c8=Q {[%clk 0:00:00]} 1-0


[Site "https://www.chess.com"]

[Event "Titled Tuesday Blitz August 16 Late 2022"]
[White "Martin Barcelo, Carles"]
[Black "Bringas Gomez, Artai"]
[WhiteFideId "24561444"]
[BlackFideId "24534064"]
[WhiteElo "1922"]
[BlackElo "2039"]
[Result "1-0"]
[Round "08"]
[TimeControl "180+1"]
[Date "2022.08.18"]
[WhiteClock "0:00:00"]
[BlackClock "0:00:00"]

1. e4 {[%clk 0:00:00]}  e5 {[%clk 0:00:00]} 2. Nf3 {[%clk 0:00:00]}  Nc6 {[%clk 0:00:00]} 3. Nc3 {[%clk 0:00:00]}  Nf6 {[%clk 0:00:00]} 4. g3 {[%clk 0:00:00]}  g6 {[%clk 0:00:00]} 5. Bg2 {[%clk 0:00:00]}  Bg7 {[%clk 0:00:00]} 6. O-O {[%clk 0:00:00]}  O-O {[%clk 0:00:00]} 7. d3 {[%clk 0:00:00]}  h6 {[%clk 0:00:00]} 8. h3 {[%clk 0:00:00]}  d6 {[%clk 0:00:00]} 9. Be3 {[%clk 0:00:00]}  Re8 {[%clk 0:00:00]} 10. Qd2 {[%clk 0:00:00]}  Kh7 {[%clk 0:00:00]} 11. d4 {[%clk 0:00:00]}  d5 {[%clk 0:00:00]} 12. exd5 {[%clk 0:00:00]}  Nxd5 {[%clk 0:00:00]} 13. Nxd5 {[%clk 0:00:00]}  Qxd5 {[%clk 0:00:00]} 14. Ng5+ {[%clk 0:00:00]}  hxg5 {[%clk 0:00:00]} 15. Bxd5 {[%clk 0:00:00]}  Bxh3 {[%clk 0:00:00]} 16. Bg2 {[%clk 0:00:00]}  Bxg2 {[%clk 0:00:00]} 17. Kxg2 {[%clk 0:00:00]}  exd4 {[%clk 0:00:00]} 18. Bxg5 {[%clk 0:00:00]}  f6 {[%clk 0:00:00]} 19. Rh1+ {[%clk 0:00:00]}  Kg8 {[%clk 0:00:00]} 20. Bh6 {[%clk 0:00:00]}  Bh8 {[%clk 0:00:00]} 21. Rae1 {[%clk 0:00:00]}  Red8 {[%clk 0:00:00]} 22. Qd3 {[%clk 0:00:00]}  Kf7 {[%clk 0:00:00]} 23. Qc4+ {[%clk 0:00:00]}  Rd5 {[%clk 0:00:00]} 24. Qxd5# {[%clk 0:00:00]} 1-0


[Site "https://www.chess.com"]